fUSD/lending_fUSD_20260323
["ID","MTS","AMOUNT","RATE_DAILY","PERIOD"]
[408819325,1774299042636,-168.0,0.0002706,2]
[408819326,1774299042646,-216.98316506,0.00027085,2]
[408819327,1774299042656,-168.0,0.00027162,2]
[408819328,1774299042667,-150.0,0.00027185,2]
[408819329,1774299042679,-513.0,0.000272,13]
[408819330,1774299042690,-227.0,0.00027216,2]
[408819331,1774299042700,-36913.25204421,0.00027254,2]
[408819333,1774299042710,-2072.22,0.00027317,2]
[408819335,1774299042726,-350.0,0.00027368,2]
[408819337,1774299042736,-151.0,0.00027385,2]
[408819339,1774299042746,-979.16666667,0.00027397,10]
[408819341,1774299042756,-300.0,0.00027397,2]
[408819342,1774299042766,-151.0,0.00027397,2]
[408819343,1774299042776,-151.0,0.00027397,2]
[408819344,1774299042787,-168.0,0.000274,2]
[408819345,1774299042798,-5306.46149997,0.00027413,2]
[408819346,1774299042808,-36913.25204421,0.00027541,2]
[408819347,1774299042818,-178.06937,0.00027541,7]
[408819348,1774299042828,-178.06937,0.00027541,7]
[408819349,1774299042838,-178.06937,0.00027541,7]
[408819350,1774299042848,-151.0,0.00027541,7]
[408819351,1774299042858,-178.06937,0.00027541,7]
[408819352,1774299042868,-200.109732,0.00027541,7]
[408819354,1774299042877,-200.109732,0.00027541,7]
[408819355,1774299042887,-200.109732,0.00027541,7]
[408819356,1774299042897,-200.109736,0.00027541,7]
[408819358,1774299042910,-151.0,0.00027541,7]
[408819359,1774299042921,-227.0,0.00027599,7]
[408819361,1774299042931,-227.0,0.0002771,2]
[408819362,1774299042941,-5306.46149997,0.00027812,2]
[408819363,1774299042951,-161.26187,0.00027812,7]
[408819364,1774299042962,-161.26187,0.00027812,7]
[408819365,1774299042972,-161.26187,0.00027812,7]
[408819366,1774299042982,-161.26187,0.00027812,7]
[408819367,1774299042992,-151.0,0.00027812,7]
[408819368,1774299043002,-151.0,0.00027812,7]
[408819369,1774299043012,-181.295673,0.00027812,7]
[408819370,1774299043022,-181.295673,0.00027812,7]
[408819371,1774299043034,-181.295673,0.00027812,7]
[408819372,1774299043044,-181.295673,0.00027812,7]
[408819373,1774299043054,-36913.25204421,0.00027828,2]
[408819374,1774299043065,-227.0,0.00027829,7]
[408819375,1774299043075,-979.16666667,0.000279,7]
[408819376,1774299043085,-227.0,0.00027995,2]
[408819377,1774299043095,-36913.25204421,0.00028115,2]
[408819378,1774299043105,-151.0,0.00028167,7]
[408819379,1774299043115,-151.0,0.00028167,7]
[408819380,1774299043125,-151.0,0.00028167,7]
[408819381,1774299043135,-2000.0,0.000282,2]
[408819382,1774299043145,-5306.46149997,0.0002821,2]
[408819383,1774299043155,-2072.22,0.00028259,2]
[408819384,1774299043166,-421.0,0.00028328,5]
[408819385,1774299043177,-337.0,0.00028328,5]
[408819386,1774299043187,-1822.0,0.00028395,7]
[408819387,1774299043197,-1822.0,0.00028397,2]
[408819388,1774299043207,-151.0,0.00028397,7]
[408819389,1774299043217,-151.0,0.00028397,7]
[408819390,1774299043227,-294.83957,0.00028397,7]
[408819391,1774299043237,-244.220628,0.00028397,7]
[408819392,1774299043246,-244.220628,0.00028397,7]
[408819393,1774299043256,-244.220628,0.00028397,7]
[408819394,1774299043266,-244.220628,0.00028397,7]
[408819395,1774299043276,-36913.25204421,0.00028402,2]
[408819396,1774299043286,-400.0,0.00028429,5]
[408819397,1774299043296,-1822.0,0.00028498,2]
[408819398,1774299043307,-168.0,0.00028503,2]
[408819399,1774299043316,-500.0,0.00028533,30]
[408819400,1774299043326,-150.0,0.00028544,2]
[408819401,1774299043336,-5306.46149997,0.00028609,2]
[408819402,1774299043346,-151.0,0.00028697,7]
[408819403,1774299043356,-227.0,0.000287,2]
[408819404,1774299043366,-168.0,0.00028728,2]
[408819405,1774299043376,-250.906637,0.0002876,7]
[408819406,1774299043385,-227.0,0.00028794,2]
[408819407,1774299043395,-168.0,0.00028847,2]
[408819408,1774299043405,-151.0,0.00029007,7]
[408819409,1774299043414,-5306.46149997,0.00029007,2]
[408819410,1774299043424,-1822.0,0.00029032,7]
[408819411,1774299043434,-161.26187,0.00029032,7]
[408819412,1774299043444,-161.26187,0.00029032,7]
[408819413,1774299043455,-161.26187,0.00029032,7]
[408819414,1774299043465,-161.261873,0.00029032,7]
[408819415,1774299043475,-151.0,0.00029032,7]
[408819416,1774299043485,-151.0,0.00029032,7]
[408819417,1774299043495,-181.295673,0.00029032,7]
[408819418,1774299043505,-181.295673,0.00029032,7]
[408819419,1774299043515,-181.295673,0.00029032,7]
[408819420,1774299043524,-181.295677,0.00029032,7]
[408819421,1774299043536,-227.0,0.00029084,2]
[408819422,1774299043546,-2072.22,0.00029201,2]
[408819423,1774299043556,-328.51644358,0.0002925,2]
[408819424,1774299043566,-227.0,0.00029324,2]
[408819425,1774299043576,-5306.46149997,0.00029406,2]
[408819426,1774299043586,-168.0,0.0002945,2]
[408819427,1774299043595,-9463.9492883,0.00029506,2]
[408819428,1774299043605,-681.762,0.00029543,2]
[408819429,1774299043615,-386.642,0.00029543,2]
[408819430,1774299043625,-1089.3,0.00029543,2]
[408819431,1774299043635,-415.0,0.00029543,2]
[408819432,1774299043645,-886.762,0.00029543,2]
[408819433,1774299043655,-500.0,0.0002958,120]
[408819434,1774299043664,-670.06,0.0002958,120]
[408819435,1774299043677,-353.87,0.00029762,2]
[408819436,1774299043687,-452.77341858,0.0002991,2]
[408819437,1774299043697,-150.0,0.00029971,2]
[408819438,1774299043707,-165.436329,0.0003,120]
[408819439,1774299043717,-1494.31023119,0.0003013,30]
[408819440,1774299043727,-150.0,0.00030136,20]
[408819441,1774299043737,-2072.22,0.00030143,2]
[408819442,1774299043746,-2111.6925203,0.00030246,2]
[408819443,1774299043759,-151.0,0.00030515,7]
[408819444,1774299043768,-151.0,0.00030515,7]
[408819445,1774299043778,-158.642776,0.00030515,7]
[408819446,1774299043789,-166.66,0.00030647,30]
[408819447,1774299043798,-979.16666667,0.00031,120]
[408819448,1774299043808,-2072.22,0.00031085,2]
[408819449,1774299043817,-166.66,0.00031293,30]
[408819450,1774299043827,-150.0,0.0003147,2]
[408819451,1774299043837,-2000.0,0.000319,2]
[408819452,1774299043846,-166.66,0.00031938,30]
[408819453,1774299043856,-500.0,0.00031964,40]
[408819454,1774299043866,-7857.32,0.00032,7]
[408819455,1774299043876,-160.0,0.00032,7]
[408819456,1774299043885,-2072.22,0.00032027,2]
[408819457,1774299043894,-166.66,0.00032583,30]
[408819458,1774299043904,-328.51644358,0.0003268,2]
[408819459,1774299043913,-230.710639,0.00032877,7]
[408819460,1774299043923,-230.710639,0.00032877,7]
[408819461,1774299043932,-230.710639,0.00032877,7]
[408819462,1774299043941,-230.710639,0.00032877,7]
[408819463,1774299043951,-230.710639,0.00032877,7]
[408819464,1774299043960,-230.710639,0.00032877,7]
[408819465,1774299043969,-230.710639,0.00032877,7]
[408819466,1774299043978,-230.710639,0.00032877,7]
[408819467,1774299043988,-230.710639,0.00032877,7]
[408819468,1774299043997,-230.710639,0.00032877,7]
[408819469,1774299044007,-230.710639,0.00032877,7]
[408819470,1774299044016,-230.710639,0.00032877,7]
[408819471,1774299044026,-230.710639,0.00032877,7]
[408819472,1774299044035,-230.710639,0.00032877,7]
[408819473,1774299044044,-230.710639,0.00032877,7]
[408819474,1774299044054,-230.710639,0.00032877,7]
[408819475,1774299044063,-230.710639,0.00032877,7]
[408819476,1774299044074,-230.710639,0.00032877,7]
[408819477,1774299044083,-230.710639,0.00032877,7]
[408819478,1774299044093,-230.710637,0.00032877,7]
[408819479,1774299044103,-2072.22,0.00032969,2]
[408819480,1774299044114,-150.0,0.00033043,2]
[408819481,1774299044125,-151.0,0.00033228,7]
[408819482,1774299044134,-166.66,0.00033228,30]
[408819483,1774299044145,-169.55,0.0003334,14]
[408819484,1774299044155,-424.72,0.00033465,120]
[408819485,1774299044165,-431.22,0.0003358,2]
[408819486,1774299044175,-175.68,0.000336,30]
[408819487,1774299044185,-2000.0,0.00033648,2]
[408819488,1774299044196,-165.47,0.00033734,2]
[408819489,1774299044206,-1000.0,0.00033809,2]
[408819490,1774299044216,-166.66,0.00033873,30]
[408819491,1774299044728,-2072.22,0.00033911,2]
[408819492,1774299044738,-151.0,0.00033911,7]
[408819493,1774299044749,-151.0,0.00033911,7]
[408819494,1774299044759,-1000.0,0.00033925,20]
[408819495,1774299044768,-7857.32,0.00034,7]
[408819496,1774299044777,-452.77341858,0.00034,2]
[408819497,1774299044786,-157.0,0.00034522,30]
[408819498,1774299044796,-154.0,0.00034522,30]
[408819499,1774299044805,-150.0,0.00034696,2]
[408819500,1774299044814,-2072.22,0.00034853,2]
[408819501,1774299044823,-157.0,0.00035522,30]
[408819502,1774299044832,-2000.0,0.000356,2]
[408819503,1774299044841,-705.51376982,0.00035616,120]
[408819504,1774299044851,-431.22,0.00035743,2]
[408819505,1774299044861,-2072.22,0.00035795,2]
[408819506,1774299044871,-184.0,0.00036,30]
[408819507,1774299044880,-527.11640546,0.00036095,2]
[408819508,1774299044889,-328.51644358,0.0003611,2]
[408819509,1774299044899,-1329.55352965,0.0003611,2]
[408819510,1774299044908,-150.0,0.0003643,2]
[408819511,1774299044917,-157.0,0.00036522,30]
[408819512,1774299044926,-599.60298507,0.00036853,2]
[408819513,1774299044935,-500.0,0.00036853,2]
[408819514,1774299044944,-264.19997292,0.00036853,2]
[408819515,1774299044953,-500.0,0.00036853,2]
[408819516,1774299044962,-500.0,0.00036853,2]
[408819517,1774299044972,-500.0,0.00036853,2]
[408819518,1774299044981,-500.0,0.00036853,2]
[408819519,1774299044990,-500.0,0.00036853,2]
[408819520,1774299044999,-500.0,0.00036853,2]
[408819521,1774299045009,-500.0,0.00036853,2]
[408819522,1774299045019,-500.0,0.00036853,2]
[408819523,1774299045028,-500.0,0.00036853,2]
[408819524,1774299045037,-500.0,0.00036853,2]
[408819525,1774299045046,-500.0,0.00036853,2]
[408819526,1774299045056,-500.0,0.00036853,2]
[408819527,1774299045065,-614.61108352,0.00036853,2]
[408819528,1774299045075,-184.0,0.00037397,30]
[408819529,1774299045085,-157.0,0.00037522,30]
[408819530,1774299045094,-424.72,0.00037648,120]
[408819531,1774299045104,-2000.0,0.00037854,2]
[408819532,1774299045114,-431.22,0.00037906,2]
[408819533,1774299045124,-1405.02,0.00038034,30]
[408819534,1774299045134,-300.0,0.00038356,120]
[408819535,1774299045143,-200.0,0.000385,120]
[408819536,1774299045153,-157.0,0.00038522,30]
[408819537,1774299045162,-789.037,0.00038536,52]
[408819538,1774299045172,-184.11594211,0.00038871,65]
[408819539,1774299045185,-200.0,0.00039,120]
[408819540,1774299045194,-186.0,0.00039267,90]
[408819541,1774299045203,-2000.0,0.000393,2]
[408819542,1774299045212,-250.0,0.00039468,2]
[408819543,1774299045221,-250.0,0.00039468,2]
[408819544,1774299045230,-250.0,0.00039468,2]
[408819545,1774299045240,-250.0,0.00039468,2]
[408819546,1774299045250,-250.0,0.00039468,2]
[408819547,1774299045259,-250.0,0.00039468,2]
[408819548,1774299045270,-250.0,0.00039468,2]
[408819549,1774299045279,-250.0,0.00039468,2]
[408819550,1774299045288,-200.0,0.00039468,2]
[408819551,1774299045297,-203.0,0.00039468,2]
[408819552,1774299045306,-157.0,0.00039522,30]
[408819553,1774299045315,-328.51644358,0.0003954,2]
[408819554,1774299045327,-150.0,0.0004,120]
[408819555,1774299045337,-200.0,0.0004,120]
[408819556,1774299045346,-205.67,0.0004,120]
[408819557,1774299045356,-431.22,0.00040069,2]
[408819558,1774299045365,-7857.32,0.000401,7]
[408819559,1774299045377,-1411.43192687,0.0004019,120]
[408819560,1774299045387,-513.0,0.000404,25]
[408819561,1774299045396,-500.0,0.000405,120]
[408819562,1774299045407,-157.0,0.00040522,30]
[408819563,1774299045418,-13680.0,0.0004095,60]
[408819564,1774299045427,-151.0,0.0004095,120]
[408819565,1774299045438,-151.0,0.0004095,120]
[408819566,1774299045448,-244.220628,0.0004095,120]
[408819567,1774299045457,-244.220628,0.0004095,120]
[408819568,1774299045467,-244.220628,0.0004095,120]
[408819569,1774299045476,-244.220628,0.0004095,120]
[408819570,1774299045485,-500.0,0.00041,120]
[408819571,1774299045494,-200.0,0.00041,120]
[408819572,1774299045503,-979.16666667,0.00041,7]
[408819573,1774299045513,-241.87439334,0.00041134,70]
[408819574,1774299045522,-204.6305872,0.00041179,70]
[408819575,1774299045531,-500.0,0.000415,120]
[408819576,1774299045541,-353.87,0.00041543,120]
[408819577,1774299045551,-290.0,0.00041626,2]
[408819578,1774299045560,-175.68,0.000417,30]
[408819579,1774299045572,-8389.895172,0.00041721,10]
[408819580,1774299045582,-424.72,0.00041831,120]
[408819581,1774299045592,-4701.39,0.00042,120]
[408819582,1774299045601,-3000.0,0.00042,30]
[408819583,1774299045610,-500.0,0.00042,120]
[408819584,1774299045620,-160.0,0.00042,120]
[408819585,1774299045630,-200.0,0.00042,120]
[408819586,1774299045640,-160.0,0.00042,120]
[408819587,1774299045650,-186.455163,0.00042,14]
[408819588,1774299045661,-979.16666667,0.00042,30]
[408819589,1774299045670,-28030.39,0.00042,120]
[408819590,1774299045684,-979.16666667,0.00042,120]
[408819591,1774299045694,-2000.0,0.0004206,120]
[408819592,1774299045703,-431.22,0.00042232,30]
[408819593,1774299045714,-13680.0,0.000423,60]
[408819594,1774299045723,-260.0,0.00042377,2]
[408819595,1774299045733,-9619.4346514,0.00042377,15]
[408819596,1774299045743,-286.63,0.000424,30]
[408819597,1774299045755,-1990.0,0.00042465,120]
[408819598,1774299045766,-4936.47,0.000425,120]
[408819599,1774299045776,-150.0,0.000425,120]
[408819600,1774299045785,-500.0,0.000425,120]
[408819601,1774299045796,-28871.3,0.000425,120]
[408819602,1774299045805,-1053.76,0.00042546,120]
[408819603,1774299045815,-1990.0,0.00042739,120]
[408819604,1774299045825,-313.4495,0.000428,120]
[408819605,1774299045835,-515.2113,0.000428,120]
[408819606,1774299045844,-3400.0,0.000429,15]
[408819607,1774299045854,-328.51644358,0.0004297,9]
[408819608,1774299045864,-500.0,0.00042999,30]
[408819609,1774299045873,-5183.29,0.00043,120]
[408819610,1774299045883,-3045.0,0.00043,30]
[408819611,1774299045892,-500.0,0.00043,120]
[408819612,1774299045902,-160.0,0.00043,120]
[408819613,1774299045912,-200.0,0.00043,120]
[408819614,1774299045922,-2000.0,0.00043,2]
[408819615,1774299045931,-29737.44,0.00043,120]
[408819616,1774299045941,-979.16666667,0.00043,120]
[408819617,1774299045956,-151.0,0.00043,120]
[408819618,1774299045970,-151.0,0.00043,120]
[408819619,1774299045981,-244.220628,0.00043,120]
[408819620,1774299045991,-244.220628,0.00043,120]
[408819621,1774299046001,-244.220628,0.00043,120]
[408819622,1774299046011,-244.220624,0.00043,120]
[408819623,1774299046021,-1990.0,0.00043013,120]
[408819624,1774299046030,-500.0,0.00043015,120]
[408819625,1774299046040,-670.06,0.00043015,120]
[408819626,1774299046050,-350.0,0.00043259,2]
[408819627,1774299046060,-1990.0,0.00043287,120]
[408819628,1774299046070,-260.0,0.00043318,2]
[408819629,1774299046079,-299.63284457,0.00043397,74]
[408819630,1774299046089,-162.0,0.00043408,16]
[408819631,1774299046099,-238.98641814,0.00043445,74]
[408819632,1774299046109,-5442.46,0.000435,120]
[408819633,1774299046119,-500.0,0.000435,120]
[408819634,1774299046128,-150.0,0.000435,120]
[408819635,1774299046137,-30629.56,0.000435,120]
[408819636,1774299046147,-1990.0,0.00043561,120]
[408819637,1774299046157,-18798.0,0.00043616,120]
[408819638,1774299046168,-13680.0,0.0004365,60]
[408819639,1774299046178,-10000.0,0.00043736,2]
[408819640,1774299046188,-2782.0,0.000438,7]
[408819641,1774299046199,-300.0,0.00043808,2]
[408819642,1774299046208,-300.0,0.00043808,2]
[408819643,1774299046219,-300.0,0.00043808,2]
[408819644,1774299046230,-300.0,0.00043808,2]
[408819645,1774299046239,-300.0,0.00043808,2]
[408819646,1774299046249,-300.0,0.00043808,2]
[408819647,1774299046259,-300.0,0.00043808,2]
[408819648,1774299046268,-300.0,0.00043808,2]
[408819649,1774299046278,-1990.0,0.00043835,120]
[408819650,1774299046288,-851.0,0.00043836,120]
[408819651,1774299046297,-189.74583925,0.00043975,7]
[408819652,1774299046307,-318.25,0.00044,120]
[408819653,1774299046316,-5714.58,0.00044,120]
[408819654,1774299046326,-500.0,0.00044,120]
[408819655,1774299046336,-150.0,0.00044,120]
[408819656,1774299046346,-160.0,0.00044,120]
[408819657,1774299046355,-298.92834039,0.00044,120]
[408819658,1774299046365,-31548.45,0.00044,120]
[408819659,1774299046376,-154.54563088,0.00044017,120]
[408819660,1774299046389,-152.0,0.00044098,3]
[408819661,1774299046399,-1990.0,0.00044109,120]
[408819662,1774299046409,-851.0,0.0004411,120]
[408819663,1774299046419,-646.49158853,0.0004413,120]
[408819664,1774299046429,-160.0,0.00044133,2]
[408819665,1774299046439,-820.67181315,0.0004417,120]
[408819666,1774299046448,-350.0,0.00044189,2]
[408819667,1774299046459,-162.62825463,0.000442,7]
[408819668,1774299046469,-1568.0,0.00044257,16]
[408819669,1774299046479,-7857.32,0.000443,7]
[408819670,1774299046490,-2002.0,0.00044368,16]
[408819671,1774299046507,-1990.0,0.00044383,120]
[408819672,1774299046517,-851.0,0.00044384,120]
[408819673,1774299046530,-431.22,0.00044395,30]
[408819674,1774299046540,-6000.31,0.000445,120]
[408819675,1774299046551,-500.0,0.000445,120]
[408819676,1774299046560,-150.0,0.000445,120]
[408819677,1774299046570,-32494.9,0.000445,120]
[408819678,1774299046580,-161.0,0.00044522,16]
[408819679,1774299046590,-2804.0,0.00044577,16]
[408819680,1774299046600,-265.82933865,0.0004458,30]
[408819681,1774299046610,-50422.06064983,0.0004459,30]
[408819682,1774299046621,-1990.0,0.00044657,120]
[408819683,1774299046630,-851.0,0.00044658,120]
[408819684,1774299046640,-161.0,0.00044674,16]
[408819685,1774299046650,-170.0,0.00044731,2]
[408819686,1774299046660,-161.0,0.00044804,16]
[408819687,1774299046671,-170.04134635,0.000449,2]
[408819688,1774299046685,-1990.0,0.00044931,120]
[408819689,1774299046694,-851.0,0.00044932,120]
[408819690,1774299046704,-161.0,0.00044946,16]
[408819691,1774299046715,-864.84735242,0.00045,120]
[408819692,1774299046725,-6300.32,0.00045,120]
[408819693,1774299046736,-150.0,0.00045,120]
[408819694,1774299046746,-196.06,0.00045,120]
[408819695,1774299046757,-500.0,0.00045,120]
[408819696,1774299046766,-150.0,0.00045,120]
[408819697,1774299046776,-13680.0,0.00045,60]
[408819698,1774299046786,-188.22,0.00045,120]
[408819699,1774299046796,-624.66,0.00045,120]
[408819700,1774299046806,-173.6782,0.00045,60]
[408819701,1774299046816,-33469.75,0.00045,120]
[408819702,1774299046826,-200.0,0.00045,120]
[408819703,1774299046836,-1411.74789483,0.00045008,2]
[408819704,1774299046846,-1000.0,0.00045008,2]
[408819705,1774299046856,-1000.0,0.00045008,2]
[408819706,1774299046866,-1000.0,0.00045008,2]
[408819707,1774299046875,-1000.0,0.00045008,2]
[408819708,1774299046885,-1000.0,0.00045008,2]
[408819709,1774299046895,-1000.0,0.00045008,2]
[408819710,1774299046905,-1000.0,0.00045008,2]
[408819711,1774299046915,-1000.0,0.00045008,2]
[408819712,1774299046926,-1000.0,0.00045008,2]
[408819713,1774299046936,-1000.0,0.00045008,2]
[408819714,1774299046946,-1000.0,0.00045008,2]
[408819715,1774299046955,-1000.0,0.00045008,2]
[408819716,1774299046965,-160.29235003,0.00045008,120]
[408819717,1774299046976,-260.0,0.00045024,117]
[408819718,1774299046986,-260.0,0.00045151,120]
[408819719,1774299046996,-260.0,0.00045151,120]
[408819720,1774299047007,-260.0,0.00045151,120]
[408819721,1774299047017,-260.0,0.00045151,120]
[408819722,1774299047027,-260.0,0.00045151,120]
[408819723,1774299047037,-260.0,0.00045151,120]
[408819724,1774299047047,-260.0,0.00045151,120]
[408819725,1774299047062,-260.0,0.00045151,120]
[408819726,1774299047073,-260.0,0.00045151,120]
[408819727,1774299047083,-260.0,0.00045151,120]
[408819728,1774299047093,-330.02,0.00045151,120]
[408819729,1774299047104,-500.0,0.0004516,120]
[408819730,1774299047395,-400.0,0.0004517,3]
[408819731,1774299047405,-175.68,0.000452,30]
[408819732,1774299047414,-200.0,0.000452,10]
[408819733,1774299047424,-500.0,0.00045203,120]
[408819734,1774299047433,-500.0,0.00045203,30]
[408819735,1774299047445,-670.06,0.00045203,120]
[408819736,1774299047455,-151.0,0.00045205,30]
[408819737,1774299047464,-432.58499021,0.00045205,30]
[408819738,1774299047474,-500.0,0.00045205,30]
[408819739,1774299047483,-1990.0,0.00045205,120]
[408819740,1774299047492,-851.0,0.00045205,120]
[408819741,1774299047502,-272.551608,0.00045205,120]
[408819742,1774299047514,-272.551608,0.00045205,120]
[408819743,1774299047528,-272.551608,0.00045205,120]
[408819744,1774299047539,-272.551608,0.00045205,120]
[408819745,1774299047548,-272.551608,0.00045205,120]
[408819746,1774299047558,-272.551608,0.00045205,120]
[408819747,1774299047569,-272.551608,0.00045205,120]
[408819748,1774299047579,-272.551608,0.00045205,120]
[408819749,1774299047588,-272.551608,0.00045205,120]
[408819750,1774299047598,-272.551608,0.00045205,120]
[408819751,1774299047607,-272.551608,0.00045205,120]
[408819752,1774299047616,-272.551608,0.00045205,120]
[408819753,1774299047625,-272.551608,0.00045205,120]
[408819754,1774299047634,-272.551608,0.00045205,120]
[408819755,1774299047644,-272.551608,0.00045205,120]
[408819756,1774299047654,-272.551608,0.00045205,120]
[408819757,1774299047664,-272.551608,0.00045205,120]
[408819758,1774299047675,-272.551608,0.00045205,120]
[408819759,1774299047688,-272.551608,0.00045205,120]
[408819760,1774299047697,-272.551614,0.00045205,120]
[408819761,1774299047705,-151.0,0.00045205,120]
[408819762,1774299047715,-157.0616,0.00045205,120]
[408819763,1774299047724,-151.0,0.00045205,120]
[408819764,1774299047733,-151.0,0.00045205,120]
[408819765,1774299047742,-151.0,0.00045205,120]
[408819766,1774299047751,-151.0,0.00045205,120]
[408819767,1774299047763,-151.0,0.00045205,120]
[408819768,1774299047772,-151.0,0.00045205,120]
[408819769,1774299047781,-151.0,0.00045205,120]
[408819770,1774299047790,-151.0,0.00045205,120]
[408819771,1774299047802,-151.0,0.00045205,120]
[408819772,1774299047811,-151.0,0.00045205,120]
[408819773,1774299047821,-151.0,0.00045205,120]
[408819774,1774299047832,-151.0,0.00045205,120]
[408819775,1774299047843,-151.0,0.00045205,120]
[408819776,1774299047853,-151.0,0.00045205,120]
[408819777,1774299047862,-151.0,0.00045205,120]
[408819778,1774299047871,-151.0,0.00045205,120]
[408819779,1774299047881,-151.0,0.00045205,120]
[408819780,1774299047890,-151.0,0.00045205,120]
[408819781,1774299047902,-170.875758,0.00045205,120]
[408819782,1774299047911,-151.0,0.00045205,120]
[408819783,1774299047921,-221.829221,0.00045205,120]
[408819784,1774299047930,-151.0,0.00045205,120]
[408819785,1774299047940,-151.0,0.00045205,120]
[408819786,1774299047949,-151.0,0.00045205,120]
[408819787,1774299047959,-151.0,0.00045205,120]
[408819788,1774299047969,-151.0,0.00045205,120]
[408819789,1774299047978,-151.0,0.00045205,120]
[408819790,1774299047987,-151.0,0.00045205,120]
[408819791,1774299047997,-151.0,0.00045205,120]
[408819792,1774299048007,-225.778225,0.00045205,120]
[408819793,1774299048017,-151.0,0.00045205,120]
[408819794,1774299048026,-151.0,0.00045205,120]
[408819795,1774299048036,-465.468881,0.00045205,120]
[408819796,1774299048045,-151.0,0.00045205,120]
[408819797,1774299048055,-465.468881,0.00045205,120]
[408819798,1774299048064,-151.0,0.00045205,120]
[408819799,1774299048074,-151.0,0.00045205,120]
[408819800,1774299048083,-465.468881,0.00045205,120]
[408819801,1774299048092,-151.0,0.00045205,120]
[408819802,1774299048101,-465.468881,0.00045205,120]
[408819803,1774299048113,-151.0,0.00045205,120]
[408819804,1774299048122,-465.468881,0.00045205,120]
[408819805,1774299048131,-151.0,0.00045205,120]
[408819806,1774299048141,-465.468881,0.00045205,120]
[408819807,1774299048151,-151.0,0.00045205,120]
[408819808,1774299048160,-465.468881,0.00045205,120]
[408819809,1774299048169,-465.468881,0.00045205,120]
[408819810,1774299048179,-465.468881,0.00045205,120]
[408819811,1774299048188,-465.468881,0.00045205,120]
[408819812,1774299048197,-465.468881,0.00045205,120]
[408819813,1774299048207,-465.468881,0.00045205,120]
[408819814,1774299048216,-465.468881,0.00045205,120]
[408819815,1774299048226,-465.468881,0.00045205,120]
[408819816,1774299048235,-465.468881,0.00045205,120]
[408819817,1774299048245,-465.468881,0.00045205,120]
[408819818,1774299048254,-465.468881,0.00045205,120]
[408819819,1774299048264,-465.468881,0.00045205,120]
[408819820,1774299048273,-465.468881,0.00045205,120]
[408819821,1774299048285,-465.468886,0.00045205,120]
[408819822,1774299048295,-218.728653,0.00045205,120]
[408819823,1774299048304,-218.728653,0.00045205,120]
[408819824,1774299048314,-218.728653,0.00045205,120]
[408819825,1774299048323,-218.728653,0.00045205,120]
[408819826,1774299048332,-218.728653,0.00045205,120]
[408819827,1774299048342,-218.728653,0.00045205,120]
[408819828,1774299048351,-218.728653,0.00045205,120]
[408819829,1774299048360,-218.728653,0.00045205,120]
[408819830,1774299048369,-218.728653,0.00045205,120]
[408819831,1774299048378,-218.728653,0.00045205,120]
[408819832,1774299048388,-218.728653,0.00045205,120]